fUST/lending_fUST_20260418
["ID","MTS","AMOUNT","RATE_DAILY","PERIOD"]
[420668610,1776454239586,-2419.78,9.041e-05,2]
[420668611,1776454239596,-1237.35,9.041e-05,2]
[420668612,1776454239605,-503.44,9.041e-05,2]
[420668613,1776454239615,-3864.67,9.041e-05,2]
[420668614,1776454239625,-581.96,9.041e-05,2]
[420668615,1776454239635,-373.20845255,9.041e-05,2]
[420668616,1776454239667,-126.79154745,9.041e-05,2]
[420668617,1776454239676,-1335.95645255,9.041e-05,2]
[420668618,1776454239687,-18.77354745,9.041e-05,2]
[420668619,1776454239697,-926.76,9.041e-05,2]
[420668620,1776454239707,-500.0,9.041e-05,2]
[420668621,1776454239716,-500.0,9.041e-05,2]
[420668622,1776454239725,-500.0,9.041e-05,2]
[420668623,1776454239735,-1447.91301996,9.041e-05,2]
[420668629,1776454240928,-300.18062377,9.041e-05,2]
[420668651,1776454243689,-2016.48,8.219e-05,2]
[420668652,1776454243699,-2016.48,8.493e-05,2]
[420668653,1776454243709,-280.10635627,9.041e-05,2]
[420668654,1776454243718,-1136.72,9.041e-05,2]
[420668655,1776454243728,-678.83,9.041e-05,2]
[420668656,1776454243737,-1867.41,9.041e-05,2]
[420668657,1776454243747,-1355.97,9.041e-05,2]
[420668658,1776454243757,-500.0,9.041e-05,2]
[420668659,1776454243766,-1085.19,9.041e-05,2]
[420668660,1776454243776,-396.36073242,9.041e-05,2]
[420668661,1776454243785,-169.60393873,9.041e-05,2]
[420668662,1776454243859,-2016.48,8.767e-05,2]
[420668663,1776454243869,-330.39606127,9.041e-05,2]
[420668664,1776454243878,-2121.63,9.041e-05,2]
[420668665,1776454243887,-3495.2958119,9.041e-05,2]
[420668670,1776454246701,-1261.0241881,9.041e-05,2]
[420668671,1776454246710,-500.0,9.041e-05,2]
[420668672,1776454246720,-500.0,9.041e-05,2]
[420668673,1776454246729,-500.0,9.041e-05,2]
[420668674,1776454246738,-1670.76,9.041e-05,2]
[420668675,1776454246747,-4734.08,9.041e-05,2]
[420668676,1776454246757,-500.0,9.041e-05,2]
[420668677,1776454246766,-1008.41,9.041e-05,2]
[420668678,1776454246775,-500.0,9.041e-05,2]
[420668679,1776454246785,-500.0,9.041e-05,2]
[420668680,1776454246794,-172.7722119,9.041e-05,2]
[420668681,1776454246813,-777.4877881,9.041e-05,2]
[420668682,1776454246823,-1408.28,9.041e-05,2]
[420668683,1776454246832,-695.92,9.041e-05,2]
[420668684,1776454246841,-1895.03,9.041e-05,2]
[420668685,1776454246851,-1466.03,9.041e-05,2]
[420668686,1776454246860,-500.0,9.041e-05,2]
[420668687,1776454246869,-11328.98,9.041e-05,2]
[420668688,1776454246879,-500.0,9.041e-05,2]
[420668689,1776454246888,-500.0,9.041e-05,2]
[420668690,1776454246898,-500.0,9.041e-05,2]
[420668691,1776454246907,-2814.45,9.041e-05,2]
[420668692,1776454246917,-2278.61,9.041e-05,2]
[420668693,1776454246927,-500.0,9.041e-05,2]
[420668694,1776454246936,-3129.4525602,9.041e-05,2]
[420668697,1776454247422,-1640.01,8.219e-05,2]
[420668698,1776454247432,-2469.8874398,9.041e-05,2]
[420668699,1776454247441,-1037.2,9.041e-05,2]
[420668700,1776454247450,-1286.28,9.041e-05,2]
[420668701,1776454247459,-2016.48,9.041e-05,2]
[420668702,1776454247468,-702.096,9.041e-05,2]
[420668703,1776454247477,-1199.0,9.041e-05,2]
[420668704,1776454247487,-10000.0,9.123e-05,2]
[420668705,1776454247496,-478.75725327,9.195e-05,2]
[420668706,1776454247506,-2312.83697232,9.195e-05,2]
[420668707,1776454247515,-2000.0,9.216e-05,2]
[420668708,1776454247524,-300.0,9.221e-05,2]
[420668709,1776454247533,-300.0,9.221e-05,2]
[420668710,1776454247542,-300.0,9.221e-05,2]
[420668711,1776454247551,-300.0,9.221e-05,2]
[420668712,1776454247561,-300.0,9.221e-05,2]
[420668713,1776454247570,-300.0,9.221e-05,2]
[420668714,1776454247579,-300.0,9.221e-05,2]
[420668715,1776454247588,-729.2321,9.315e-05,2]
[420668716,1776454247597,-729.232,9.315e-05,2]
[420668717,1776454247607,-759.54,9.315e-05,2]
[420668718,1776454247616,-500.0,9.315e-05,2]
[420668719,1776454247625,-500.0,9.315e-05,2]
[420668720,1776454247634,-500.0,9.315e-05,2]
[420668721,1776454247644,-1246.82,9.315e-05,2]
[420668722,1776454247653,-500.0,9.315e-05,2]
[420668723,1776454247663,-915.74,9.315e-05,2]
[420668724,1776454247672,-3993.67,9.315e-05,2]
[420668725,1776454247681,-500.0,9.315e-05,2]
[420668726,1776454247690,-1432.96,9.315e-05,2]
[420668727,1776454247699,-1480.57,9.315e-05,2]
[420668728,1776454247708,-500.0,9.315e-05,2]
[420668729,1776454247718,-1112.85,9.315e-05,2]
[420668730,1776454247727,-500.0,9.315e-05,2]
[420668731,1776454247736,-500.0,9.315e-05,2]
[420668732,1776454247745,-878.54,9.315e-05,2]
[420668733,1776454247756,-500.0,9.315e-05,2]
[420668734,1776454247765,-500.0,9.315e-05,2]
[420668735,1776454247775,-1237.35,9.315e-05,2]
[420668736,1776454247784,-503.44,9.315e-05,2]
[420668737,1776454247793,-3864.67,9.315e-05,2]
[420668738,1776454247802,-581.96,9.315e-05,2]
[420668739,1776454247811,-500.0,9.315e-05,2]
[420668740,1776454247821,-1354.73,9.315e-05,2]
[420668741,1776454247831,-926.76,9.315e-05,2]
[420668742,1776454247840,-500.0,9.315e-05,2]
[420668743,1776454247850,-500.0,9.315e-05,2]
[420668744,1776454247860,-501.88124082,9.315e-05,2]
[420668745,1776454247870,-2028.2,9.315e-05,2]
[420668746,1776454247879,-1136.72,9.315e-05,2]
[420668747,1776454247889,-678.83,9.315e-05,2]
[420668748,1776454247898,-1867.41,9.315e-05,2]
[420668749,1776454247907,-1355.97,9.315e-05,2]
[420668750,1776454247916,-500.0,9.315e-05,2]
[420668751,1776454247925,-1085.19,9.315e-05,2]
[420668752,1776454247935,-500.0,9.315e-05,2]
[420668753,1776454247944,-2121.63,9.315e-05,2]
[420668754,1776454247953,-4756.32,9.315e-05,2]
[420668755,1776454247963,-500.0,9.315e-05,2]
[420668756,1776454247972,-500.0,9.315e-05,2]
[420668757,1776454247981,-500.0,9.315e-05,2]
[420668758,1776454247990,-1670.76,9.315e-05,2]
[420668759,1776454247999,-4734.08,9.315e-05,2]
[420668760,1776454248009,-500.0,9.315e-05,2]
[420668761,1776454248018,-1008.41,9.315e-05,2]
[420668762,1776454248027,-500.0,9.315e-05,2]
[420668763,1776454248036,-500.0,9.315e-05,2]
[420668764,1776454248046,-950.26,9.315e-05,2]
[420668765,1776454248055,-1408.28,9.315e-05,2]
[420668766,1776454248064,-695.92,9.315e-05,2]
[420668767,1776454248073,-1895.03,9.315e-05,2]
[420668768,1776454248083,-1466.03,9.315e-05,2]
[420668769,1776454248092,-500.0,9.315e-05,2]
[420668770,1776454248102,-11328.98,9.315e-05,2]
[420668771,1776454248111,-500.0,9.315e-05,2]
[420668772,1776454248122,-500.0,9.315e-05,2]
[420668773,1776454248131,-500.0,9.315e-05,2]
[420668774,1776454248143,-2814.45,9.315e-05,2]
[420668775,1776454248152,-2278.61,9.315e-05,2]
[420668776,1776454248162,-500.0,9.315e-05,2]
[420668777,1776454248172,-5599.34,9.315e-05,2]
[420668778,1776454248181,-1037.2,9.315e-05,2]
[420668779,1776454248191,-1286.28,9.315e-05,2]
[420668780,1776454248200,-2016.48,9.315e-05,2]
[420668781,1776454248210,-1199.0,9.315e-05,2]
[420668782,1776454248220,-1500.0,9.353e-05,2]
[420668783,1776454248229,-1500.0,9.387e-05,2]
[420668784,1776454248239,-151.02265338,9.4e-05,5]
[420668785,1776454248247,-455.6436383,9.519e-05,2]
[420668786,1776454248256,-1500.0,9.581e-05,2]
[420668787,1776454248266,-530.6945,9.589e-05,2]
[420668788,1776454248275,-530.6946,9.589e-05,2]
[420668789,1776454248284,-759.54,9.589e-05,2]
[420668790,1776454248293,-500.0,9.589e-05,2]
[420668791,1776454248303,-500.0,9.589e-05,2]
[420668792,1776454248313,-500.0,9.589e-05,2]
[420668793,1776454248322,-1246.82,9.589e-05,2]
[420668794,1776454248331,-500.0,9.589e-05,2]
[420668795,1776454248341,-915.74,9.589e-05,2]
[420668796,1776454248350,-3993.67,9.589e-05,2]
[420668797,1776454248360,-591.63776629,9.589e-05,2]
[420668798,1776454248369,-1432.96,9.589e-05,2]
[420668799,1776454248378,-1480.57,9.589e-05,2]
[420668800,1776454248388,-500.0,9.589e-05,2]
[420668801,1776454248398,-1112.85,9.589e-05,2]
[420668802,1776454248407,-500.0,9.589e-05,2]
[420668803,1776454248416,-500.0,9.589e-05,2]
[420668804,1776454248426,-878.54,9.589e-05,2]
[420668805,1776454248435,-500.0,9.589e-05,2]
[420668806,1776454248444,-193.01542601,9.589e-05,2]
[420668807,1776454248454,-1237.35,9.589e-05,2]
[420668808,1776454248463,-503.44,9.589e-05,2]
[420668809,1776454248472,-3864.67,9.589e-05,2]
[420668810,1776454248481,-581.96,9.589e-05,2]
[420668811,1776454248491,-500.0,9.589e-05,2]
[420668812,1776454248500,-1354.73,9.589e-05,2]
[420668813,1776454248509,-926.76,9.589e-05,2]
[420668814,1776454248518,-500.0,9.589e-05,2]
[420668815,1776454248527,-500.0,9.589e-05,2]
[420668816,1776454248537,-2028.2,9.589e-05,2]
[420668817,1776454248546,-1136.72,9.589e-05,2]
[420668818,1776454248555,-678.83,9.589e-05,2]
[420668819,1776454248563,-1867.41,9.589e-05,2]
[420668820,1776454248572,-1355.97,9.589e-05,2]
[420668821,1776454248582,-500.0,9.589e-05,2]
[420668822,1776454248591,-1085.19,9.589e-05,2]
[420668823,1776454248600,-500.0,9.589e-05,2]
[420668824,1776454248610,-2121.63,9.589e-05,2]
[420668825,1776454248619,-4756.32,9.589e-05,2]
[420668826,1776454248628,-500.0,9.589e-05,2]
[420668827,1776454248638,-500.0,9.589e-05,2]
[420668828,1776454248648,-500.0,9.589e-05,2]
[420668829,1776454248658,-1670.76,9.589e-05,2]
[420668830,1776454248667,-4734.08,9.589e-05,2]
[420668831,1776454248677,-500.0,9.589e-05,2]
[420668832,1776454248687,-1008.41,9.589e-05,2]
[420668833,1776454248696,-500.0,9.589e-05,2]
[420668834,1776454248706,-500.0,9.589e-05,2]
[420668835,1776454248716,-950.26,9.589e-05,2]
[420668836,1776454248726,-1408.28,9.589e-05,2]
[420668837,1776454248736,-695.92,9.589e-05,2]
[420668838,1776454248745,-1895.03,9.589e-05,2]
[420668839,1776454248754,-1466.03,9.589e-05,2]
[420668840,1776454248764,-500.0,9.589e-05,2]
[420668841,1776454248773,-11328.98,9.589e-05,2]
[420668842,1776454248782,-500.0,9.589e-05,2]
[420668843,1776454248791,-500.0,9.589e-05,2]
[420668844,1776454248801,-500.0,9.589e-05,2]
[420668845,1776454248810,-2814.45,9.589e-05,2]
[420668846,1776454248820,-2278.61,9.589e-05,2]
[420668847,1776454248829,-500.0,9.589e-05,2]
[420668848,1776454248838,-5599.34,9.589e-05,2]
[420668849,1776454248848,-1037.2,9.589e-05,2]
[420668850,1776454248857,-1286.28,9.589e-05,2]
[420668851,1776454248867,-2016.48,9.589e-05,2]
[420668852,1776454248876,-1199.0,9.589e-05,2]
[420668853,1776454248886,-2398.4119403,9.743e-05,2]
[420668854,1776454248896,-2500.0,9.764e-05,2]
[420668855,1776454248904,-580.08666574,9.8e-05,2]
[420668856,1776454248914,-9920.43936,9.8e-05,2]
[420668857,1776454248924,-235.40674073,9.863e-05,2]
[420668858,1776454248933,-759.54,9.863e-05,2]
[420668859,1776454248942,-500.0,9.863e-05,2]
[420668860,1776454248952,-500.0,9.863e-05,2]
[420668861,1776454248962,-500.0,9.863e-05,2]
[420668862,1776454248971,-1246.82,9.863e-05,2]
[420668863,1776454248981,-500.0,9.863e-05,2]
[420668864,1776454248990,-915.74,9.863e-05,2]
[420668865,1776454249000,-2693.63098049,9.863e-05,2]
[420668868,1776454777610,172.535267,6.49e-05,120]
[420668870,1776455206152,594.0,0.00024546,120]
[420668871,1776455234872,700.0,0.00024657,120]
[420668872,1776455294636,291.0,0.00024546,120]
[420668873,1776455351193,-3000.0,0.00024546,120]
[420668874,1776455351223,-526.2875,0.00024546,120]
[420668875,1776455351253,-520.1376,0.00024546,120]
[420668876,1776455351283,-520.1376,0.00024546,120]
[420668877,1776455351313,-1002.68454416,0.00024546,120]
[420668878,1776455351345,-500.0,0.00024546,120]
[420668879,1776455351377,-822.4,0.00024546,120]
[420668880,1776455351409,-600.2,0.00024546,120]
[420668881,1776455351441,-600.2,0.00024546,120]
[420668882,1776455351473,-600.2,0.00024546,120]
[420668883,1776455351508,-600.2,0.00024546,120]
[420668884,1776455351541,-3367.16581876,0.00024546,120]
[420668885,1776455351576,-293.99684743,0.00024546,120]
[420668886,1776455351608,-1034.16789182,0.00024546,120]
[420668887,1776455351642,-981.64541286,0.00024546,120]
[420668888,1776455351675,-741.03050728,0.00024546,120]
[420668889,1776455351706,-1080.26376834,0.00024546,120]
[420668890,1776455351740,-180.39739384,0.00024546,120]
[420668891,1776455351784,-559.68264049,0.00024546,120]
[420668892,1776455351818,-230.63184487,0.00024546,120]
[420668893,1776455351858,-338.38679463,0.00024546,120]
[420668894,1776455351892,-1061.96997345,0.00024546,120]
[420668895,1776455351939,-378.11703793,0.00024546,120]
[420668896,1776455351974,-367.8230235,0.00024546,120]
[420668897,1776455352022,-182.23174006,0.00024546,120]
[420668898,1776455352057,-753.57791956,0.00024546,120]
[420668899,1776455352087,-521.39359444,0.00024546,120]
[420668900,1776455352120,-580.93773111,0.00024546,120]
[420668901,1776455352157,-204.30187484,0.00024546,120]
[420668902,1776455352188,-167.08396474,0.00024546,120]
[420668903,1776455352225,-200.0,0.00024546,120]
[420668904,1776455352255,-1000.71878447,0.00024546,120]
[420668905,1776455352285,-162.97439108,0.00024546,120]
[420668906,1776455352316,-981.1931747,0.00024546,120]
[420668907,1776455352348,-775.5,0.00024546,120]
[420668908,1776455352379,-650.2207,0.00024546,120]
[420668909,1776455352410,-500.0,0.00024546,120]
[420668910,1776455352440,-3147.9,0.00024546,120]
[420668911,1776455352472,-4409.2,0.00024546,120]
[420668912,1776455352503,-4454.63141844,0.00024546,120]
[420668913,1776455352534,-2290.31656158,0.00024546,120]
[420668914,1776455352566,-1725.65497791,0.00024546,120]
[420668915,1776455352597,-155.80104017,0.00024546,120]
[420668916,1776455352627,-494.41072302,0.00024546,120]
[420668917,1776455352657,-161.54419831,0.00024546,120]
[420668918,1776455352688,-180.70528544,0.00024546,120]
[420668919,1776455352718,-307.40786411,0.00024546,120]
[420668920,1776455352748,-1270.44280178,0.00024546,120]
[420668921,1776455352778,-2300.0,0.00024546,120]
[420668922,1776455352807,-3312.01901227,0.00024546,120]
[420668923,1776455352840,-1184.79484251,0.00024546,120]
[420668924,1776455352869,-1317.28074103,0.00024546,120]
[420668925,1776455352900,-1462.05194141,0.00024546,120]
[420668926,1776455352930,-2816.67898298,0.00024546,120]
[420668927,1776455352959,-400.0,0.00024546,120]
[420668928,1776455352990,-1542.76809723,0.00024546,120]
[420668929,1776455353022,-1357.82429552,0.00024546,120]
[420668930,1776455353229,-1940.35253133,0.00024546,120]
[420668931,1776455353260,-1617.14211997,0.00024546,120]
[420668932,1776455353290,-584.75710991,0.00024546,120]
[420668933,1776455353321,-157.28921833,0.00024546,120]
[420668934,1776455353354,-204.16764134,0.00024546,120]
[420668935,1776455353385,-2135.29274836,0.00024546,120]
[420668936,1776455353414,-166.57091383,0.00024546,120]
[420668937,1776455353447,-174.66676431,0.00024546,120]
[420668938,1776455353476,-166.86586961,0.00024546,120]
[420668939,1776455353509,-2797.52763885,0.00024546,120]
[420668940,1776455353539,-1883.68657963,0.00024546,120]
[420668941,1776455353569,-2034.46465988,0.00024546,120]
[420668942,1776455353599,-172.35010222,0.00024546,120]
[420668943,1776455353629,-2090.84799015,0.00024546,120]
[420668944,1776455353664,-274.57199375,0.00024546,120]
[420668945,1776455353693,-1127.30616977,0.00024546,120]
[420668946,1776455353725,-5919.51865584,0.00024546,120]
[420668947,1776455353755,-663.22102956,0.00024546,120]
[420668948,1776455353786,-1054.69012816,0.00024546,120]
[420668949,1776455353816,-363.5567759,0.00024546,120]
[420668950,1776455353847,-180.63843178,0.00024546,120]
[420668951,1776455353878,-2000.0,0.00024546,120]
[420668952,1776455353909,-192.0496,0.00024546,120]
[420668953,1776455353941,-3238.6,0.00024546,120]
[420668954,1776455353973,-2200.0,0.00024546,120]
[420668955,1776455354003,-3176.73465472,0.00024546,120]
[420668956,1776455354034,-50000.0,0.00024546,120]
[420668957,1776455354066,-11143.35210324,0.00024546,120]
[420668958,1776455354096,-494.06,0.00024546,120]
[420668959,1776455354128,-2612.53406715,0.00024546,120]
[420668960,1776455354164,-2000.0,0.00024546,120]
[420668961,1776455354193,-2000.0,0.00024546,120]
[420668962,1776455354222,-176.39494675,0.00024546,120]
[420668963,1776455354251,-10077.96,0.00024546,120]
[420668964,1776455354281,-819.02082799,0.00024546,120]
[420668965,1776455354311,-222.48103862,0.00024546,120]
[420668966,1776455354340,-1036.80010683,0.00024546,120]
[420668967,1776455354369,-9161.97896523,0.00024546,120]
[420668968,1776455354398,-269.6,0.00024546,120]
[420668969,1776455354428,-500.0,0.00024546,120]
[420668970,1776455354458,-516.22678516,0.00024546,120]
[420668971,1776455354488,-31999.999998,0.00024546,120]
[420668972,1776455354517,-2000.0,0.00024546,120]
[420668973,1776455354547,-2000.0,0.00024546,120]
[420668974,1776455354579,-2000.0,0.00024546,120]
[420668975,1776455354610,-169.2,0.00024546,120]
[420668976,1776455354640,-2701.14291657,0.00024546,120]
[420668977,1776455354670,-460.57864076,0.00024546,120]
[420668978,1776455354701,-3684.98167397,0.00024546,120]
[420668979,1776455354732,-22591.61,0.00024546,120]
[420668980,1776455354761,-22591.61,0.00024546,120]
[420668981,1776455354792,-22591.61,0.00024546,120]
[420668982,1776455354825,-22591.61,0.00024546,120]
[420668983,1776455354856,-22591.61,0.00024546,120]
[420668984,1776455354888,-22591.61,0.00024546,120]
[420668985,1776455354920,-22591.61,0.00024546,120]
[420668986,1776455354953,-22591.61,0.00024546,120]
[420668987,1776455354984,-22591.61,0.00024546,120]
[420668988,1776455355017,-22591.61,0.00024546,120]
[420668989,1776455355049,-22591.61,0.00024546,120]
[420668990,1776455355079,-22591.61,0.00024546,120]
[420668991,1776455355110,-22591.61,0.00024546,120]
[420668992,1776455355143,-22591.61,0.00024546,120]
[420668993,1776455355174,-22591.61,0.00024546,120]
[420668994,1776455355203,-22591.61,0.00024546,120]
[420668995,1776455355235,-22591.61,0.00024546,120]
[420668996,1776455355265,-22591.71,0.00024546,120]
[420668997,1776455355294,-1342.49231186,0.00024546,120]
[420668998,1776455355322,-1125.650756,0.00024546,120]
[420668999,1776455355353,-1678.6233142,0.00024546,120]
[420669000,1776455355381,-42727.01427328,0.00024546,120]
[420669001,1776455355411,-9403.73,0.00024546,120]
[420669002,1776455355442,-20000.0,0.00024546,120]
[420669003,1776455355471,-399.3,0.00024546,120]
[420669004,1776455355500,-113465.2,0.00024546,120]
[420669005,1776455355531,-239.27902034,0.00024546,120]
[420669006,1776455355559,-1336.09933032,0.00024546,120]
[420669007,1776455355590,-1109.8808964,0.00024546,120]
[420669008,1776455355619,-931.12921028,0.00024546,120]
[420669009,1776455355647,-600.0,0.00024546,120]
[420669010,1776455355679,-575.42902876,0.00024546,120]
[420669011,1776455355711,-575.42902876,0.00024546,120]
[420669012,1776455355741,-575.42902876,0.00024546,120]
[420669013,1776455355774,-3095.92157649,0.00024546,120]
[420669014,1776455355804,-575.42902876,0.00024546,120]
[420669015,1776455355834,-3095.92157649,0.00024546,120]
[420669016,1776455355862,-575.42902876,0.00024546,120]
[420669017,1776455355892,-3095.92157649,0.00024546,120]
[420669018,1776455355921,-575.42902876,0.00024546,120]
[420669019,1776455355952,-3095.92157649,0.00024546,120]
[420669020,1776455355980,-575.42902876,0.00024546,120]
[420669021,1776455356011,-3095.92157649,0.00024546,120]
[420669022,1776455356038,-575.42902876,0.00024546,120]
[420669023,1776455356067,-3095.92157649,0.00024546,120]
[420669024,1776455356234,-575.42902876,0.00024546,120]
[420669025,1776455356265,-3095.92157649,0.00024546,120]
[420669026,1776455356295,-575.42902876,0.00024546,120]
[420669027,1776455356325,-3095.92157649,0.00024546,120]
[420669028,1776455356353,-575.42902876,0.00024546,120]
[420669029,1776455356383,-3095.92157649,0.00024546,120]
[420669030,1776455356411,-575.42902876,0.00024546,120]
[420669031,1776455356442,-3095.92157649,0.00024546,120]
[420669032,1776455356470,-575.42902876,0.00024546,120]
[420669033,1776455356499,-3095.92157649,0.00024546,120]
[420669034,1776455356526,-575.42902876,0.00024546,120]
[420669035,1776455356555,-3095.92157649,0.00024546,120]
[420669036,1776455356582,-575.42902876,0.00024546,120]
[420669037,1776455356610,-3095.92157649,0.00024546,120]
[420669038,1776455356638,-575.42902876,0.00024546,120]
[420669039,1776455356666,-3095.92157649,0.00024546,120]
[420669040,1776455356694,-575.42902876,0.00024546,120]
[420669041,1776455356721,-3095.92157649,0.00024546,120]
[420669042,1776455356748,-575.42902876,0.00024546,120]
[420669043,1776455356775,-3095.92157649,0.00024546,120]
[420669044,1776455356802,-575.42902876,0.00024546,120]
[420669045,1776455356830,-3095.92157649,0.00024546,120]
[420669046,1776455356858,-575.42902876,0.00024546,120]
[420669047,1776455356887,-3095.92157649,0.00024546,120]
[420669048,1776455356914,-575.42902876,0.00024546,120]
[420669049,1776455356946,-3095.92157649,0.00024546,120]
[420669050,1776455356973,-575.42902876,0.00024546,120]
[420669051,1776455357001,-3095.92157649,0.00024546,120]
[420669052,1776455357029,-575.42902876,0.00024546,120]
[420669053,1776455357056,-3095.92157649,0.00024546,120]
[420669054,1776455357083,-575.42902876,0.00024546,120]
[420669055,1776455357111,-3095.92157649,0.00024546,120]
[420669056,1776455357137,-575.42902876,0.00024546,120]
[420669057,1776455357164,-3095.92157649,0.00024546,120]
[420669058,1776455357191,-575.42902876,0.00024546,120]
[420669059,1776455357218,-3095.92157649,0.00024546,120]
[420669060,1776455357245,-575.42902876,0.00024546,120]
[420669061,1776455357272,-3095.92157649,0.00024546,120]
[420669062,1776455357298,-575.42902876,0.00024546,120]
[420669063,1776455357325,-575.42902876,0.00024546,120]
[420669064,1776455357353,-3095.92157649,0.00024546,120]
[420669065,1776455357380,-3095.92157649,0.00024546,120]
[420669066,1776455357407,-3095.92157649,0.00024546,120]
[420669067,1776455357434,-3095.92157649,0.00024546,120]
[420669068,1776455357462,-3095.92157649,0.00024546,120]
[420669069,1776455357489,-3095.92157649,0.00024546,120]
[420669070,1776455357517,-3095.92157649,0.00024546,120]
[420669071,1776455357544,-3095.92157649,0.00024546,120]
[420669072,1776455357572,-3095.92157649,0.00024546,120]
[420669073,1776455357600,-3095.92157649,0.00024546,120]
[420669074,1776455357627,-3095.92157649,0.00024546,120]
[420669075,1776455357655,-3095.92157649,0.00024546,120]
[420669076,1776455357682,-3095.92157649,0.00024546,120]
[420669077,1776455357710,-3095.92157649,0.00024546,120]
[420669078,1776455357738,-3095.92157649,0.00024546,120]
[420669079,1776455357765,-3095.92157649,0.00024546,120]
[420669080,1776455357792,-3095.92157649,0.00024546,120]
[420669081,1776455357820,-3095.92157649,0.00024546,120]
[420669082,1776455357848,-3095.92157649,0.00024546,120]
[420669083,1776455357874,-3095.92157649,0.00024546,120]
[420669084,1776455357901,-256.48305433,0.00024546,120]
[420669085,1776455357928,-191.80967625,0.00024546,120]
[420669086,1776455357955,-191.80967625,0.00024546,120]
[420669087,1776455357981,-191.80967624,0.00024546,120]
[420669088,1776455358009,-535.23930101,0.00024546,120]
[420669089,1776455358036,-328.00059798,0.00024546,120]
[420669090,1776455358061,-169.74174846,0.00024546,120]
[420669091,1776455358087,-328.00059798,0.00024546,120]
[420669092,1776455358115,-328.00059798,0.00024546,120]
[420669093,1776455358140,-328.00059798,0.00024546,120]
[420669094,1776455358167,-328.00059798,0.00024546,120]
[420669095,1776455358193,-328.00059798,0.00024546,120]
[420669096,1776455358220,-328.00059798,0.00024546,120]
[420669097,1776455358248,-328.00059798,0.00024546,120]
[420669098,1776455358274,-5200.43532044,0.00024546,120]
[420669099,1776455358300,-157244.0,0.00024546,120]
[420669100,1776455358328,-300.07612253,0.00024546,120]
[420669101,1776455358356,-216.03538578,0.00024546,120]
[420669102,1776455358384,-212.86202087,0.00024546,120]
[420669103,1776455358411,-300.07612253,0.00024546,120]
[420669104,1776455358438,-216.03538578,0.00024546,120]
[420669105,1776455358465,-300.07612253,0.00024546,120]
[420669106,1776455358491,-216.03538578,0.00024546,120]
[420669107,1776455358517,-300.07612253,0.00024546,120]
[420669108,1776455358545,-300.07612253,0.00024546,120]
[420669109,1776455358572,-300.07612253,0.00024546,120]
[420669110,1776455358599,-300.07612253,0.00024546,120]
[420669111,1776455358626,-300.07612253,0.00024546,120]
[420669112,1776455358651,-3505.345058,0.00024546,120]
[420669113,1776455358677,-234.59135885,0.00024546,120]
[420669114,1776455358704,-154.58614407,0.00024546,120]
[420669115,1776455358732,-326.04055929,0.00024546,120]
[420669116,1776455358760,-234.59135885,0.00024546,120]
[420669117,1776455358787,-326.04055929,0.00024546,120]
[420669118,1776455358813,-154.58614407,0.00024546,120]
[420669119,1776455358976,-234.59135885,0.00024546,120]
[420669120,1776455359005,-326.04055929,0.00024546,120]
[420669121,1776455359032,-154.58614407,0.00024546,120]
[420669122,1776455359059,-234.59135885,0.00024546,120]
[420669123,1776455359085,-154.58614407,0.00024546,120]
[420669124,1776455359111,-326.04055929,0.00024546,120]
[420669125,1776455359137,-154.58614407,0.00024546,120]
[420669126,1776455359165,-234.59135885,0.00024546,120]
[420669127,1776455359191,-326.04055929,0.00024546,120]
[420669128,1776455359218,-234.59135885,0.00024546,120]
[420669129,1776455359244,-154.58614407,0.00024546,120]
[420669130,1776455359272,-234.59135885,0.00024546,120]
[420669131,1776455359297,-154.58614407,0.00024546,120]
[420669132,1776455359324,-326.04055929,0.00024546,120]
[420669133,1776455359350,-234.59135885,0.00024546,120]
[420669134,1776455359377,-326.04055929,0.00024546,120]
[420669135,1776455359403,-234.59135885,0.00024546,120]
[420669136,1776455359430,-326.04055929,0.00024546,120]
[420669137,1776455359458,-234.59135885,0.00024546,120]
[420669138,1776455359484,-326.04055929,0.00024546,120]
[420669139,1776455359511,-234.59135885,0.00024546,120]
[420669140,1776455359538,-234.59135885,0.00024546,120]
[420669141,1776455359565,-234.59135885,0.00024546,120]
[420669142,1776455359593,-234.59135885,0.00024546,120]
[420669143,1776455359618,-234.59135885,0.00024546,120]
[420669144,1776455359646,-168.64059769,0.00024546,120]